bitfinex-derivatives/quotes_BTCF0:USTF0_20241217
["timestamp","ask_amount","ask_price","bid_price","bid_amount"]
[1734458402212,0.58248965,107440.0,107420.0,0.06618118]
[1734458402411,0.407334,107430.0,107420.0,0.06618118]
[1734458404324,0.49933,107440.0,107430.0,0.046534]
[1734458404325,0.499333,107440.0,107430.0,0.046534]
[1734458404523,0.092633,107440.0,107430.0,0.12969365]
[1734458404827,0.092633,107440.0,107430.0,0.046534]
[1734458406111,0.141333,107440.0,107430.0,0.046534]
[1734458406321,0.502133,107440.0,107430.0,0.046534]
[1734458406820,0.141333,107440.0,107430.0,0.046534]
[1734458407013,0.22449265,107440.0,107430.0,0.046534]
[1734458408073,0.58529265,107440.0,107430.0,0.046534]
[1734458410024,0.0461,107440.0,107430.0,0.046534]
[1734458410232,0.0461,107440.0,107430.0,0.12969365]
[1734458410521,0.456628,107450.0,107440.0,0.04653]
[1734458410819,0.3608,107450.0,107440.0,0.12968965]
[1734458411136,0.5039184,107460.0,107440.0,0.04653]
[1734458411322,0.5039184,107460.0,107450.0,0.046526]
[1734458411635,0.5039184,107460.0,107450.0,0.12968565]
[1734458411852,0.0965944,107460.0,107450.0,0.046526]
[1734458412124,0.1431154,107460.0,107450.0,0.046526]
[1734458413624,0.0965944,107460.0,107450.0,0.407326]
[1734458413943,0.0498944,107460.0,107450.0,0.046526]
[1734458415531,0.4106944,107460.0,107450.0,0.046526]
[1734458416030,0.0498944,107460.0,107450.0,0.407326]
[1734458416215,0.0498944,107460.0,107440.0,0.7357844]
[1734458416529,0.0498944,107460.0,107450.0,0.046526]
[1734458416821,0.0511712,107460.0,107450.0,0.046526]
[1734458418477,0.4584922,107460.0,107450.0,0.046526]
[1734458418643,0.046526,107450.0,107440.0,0.046528]
[1734458418746,0.49176245,107450.0,107440.0,0.05524533]
[1734458418923,0.58726245,107450.0,107440.0,0.05524533]
[1734458419124,0.5041028,107450.0,107440.0,0.05524533]
[1734458420244,0.5041028,107450.0,107440.0,0.07455045]
[1734458420572,0.58726245,107450.0,107440.0,0.07455045]
[1734458420730,0.0955,107450.0,107440.0,0.07455045]
[1734458420929,0.4563,107450.0,107440.0,0.06583312]
[1734458421136,0.502826,107450.0,107440.0,0.06583312]
[1734458421838,0.58598565,107450.0,107440.0,0.01930512]
[1734458422031,0.58598565,107450.0,107430.0,0.046533]
[1734458422224,0.53628965,107440.0,107430.0,0.046533]
[1734458422820,0.046537,107430.0,107420.0,0.046537]
[1734458423037,0.53809665,107430.0,107420.0,0.046537]
[1734458423226,0.53809665,107430.0,107420.0,0.047037]
[1734458424230,0.53809665,107430.0,107420.0,0.046537]
[1734458424465,0.53809665,107430.0,107410.0,0.01972408]
[1734458424628,0.53879865,107420.0,107410.0,0.06626408]
[1734458425029,0.455639,107420.0,107410.0,0.06626408]
[1734458425923,0.455639,107420.0,107390.0,0.40874548]
[1734458425924,0.53879865,107420.0,107390.0,0.40874548]
[1734458426136,0.49050665,107400.0,107390.0,0.04794548]
[1734458426331,0.407347,107400.0,107390.0,0.04794548]
[1734458426518,0.407347,107400.0,107390.0,0.00139648]
[1734458426519,0.53910665,107400.0,107390.0,0.00139648]
[1734458426919,0.53910665,107400.0,107390.0,0.00144497]
[1734458428138,0.046552,107390.0,107380.0,0.01899353]
[1734458428437,0.046556,107380.0,107370.0,0.046559]
[1734458428627,0.407356,107380.0,107370.0,0.046559]
[1734458430940,0.49051565,107380.0,107370.0,0.046559]
[1734458431235,0.407356,107380.0,107370.0,0.046559]
[1734458432429,0.407356,107380.0,107370.0,0.06614415]
[1734458433141,0.49051565,107380.0,107370.0,0.06614415]
[1734458435339,0.49051565,107380.0,107370.0,0.06664415]
[1734458436439,0.3608,107390.0,107370.0,0.1498038]
[1734458436629,0.455948,107400.0,107390.0,0.046552]
[1734458436833,0.095148,107400.0,107390.0,0.046552]
[1734458437053,0.12970765,107400.0,107390.0,0.046552]
[1734458437477,0.49050765,107400.0,107390.0,0.046552]
[1734458437686,0.046552,107390.0,107380.0,0.090754]
[1734458437882,0.046552,107390.0,107380.0,0.046554]
[1734458437883,0.49051165,107390.0,107380.0,0.046554]
[1734458438177,0.046556,107380.0,107370.0,0.06664415]
[1734458438443,0.53741565,107380.0,107370.0,0.06664415]
[1734458438652,0.093456,107380.0,107370.0,0.06664415]
[1734458438841,0.454256,107380.0,107370.0,0.06664415]
[1734458439031,0.093456,107380.0,107370.0,0.06664415]
[1734458439241,0.53741565,107380.0,107370.0,0.02008515]
[1734458439555,0.046565,107360.0,107340.0,0.38796806]
[1734458439842,0.407365,107360.0,107340.0,0.09616806]
[1734458440052,0.046569,107350.0,107340.0,0.09616806]
[1734458440260,0.12972865,107350.0,107340.0,0.09616806]
[1734458440485,0.49052865,107350.0,107340.0,0.09616806]
[1734458440942,0.407369,107350.0,107340.0,0.09616806]
[1734458441143,0.407369,107350.0,107340.0,0.12067969]
[1734458441848,0.407369,107350.0,107340.0,0.11928263]
[1734458442397,0.49052865,107350.0,107340.0,0.07108263]
[1734458442536,0.53892865,107350.0,107340.0,0.07108263]
[1734458443044,0.53892865,107350.0,107340.0,0.02451163]
[1734458443241,0.53892865,107350.0,107330.0,0.092577]
[1734458443242,0.49235965,107350.0,107330.0,0.139152]
[1734458443431,0.407373,107340.0,107330.0,0.092575]
[1734458443748,0.046573,107340.0,107330.0,0.092575]
[1734458444443,0.49053265,107340.0,107330.0,0.046575]
[1734458445536,0.12973265,107340.0,107330.0,0.046575]
[1734458445753,0.49053265,107340.0,107330.0,0.046575]
[1734458445944,0.12973265,107340.0,107330.0,0.046575]
[1734458446144,0.046582,107330.0,107320.0,0.04658]
[1734458446335,0.12974165,107330.0,107320.0,0.04658]
[1734458446542,0.49054165,107330.0,107320.0,0.04658]
[1734458447035,0.407382,107330.0,107320.0,0.04658]
[1734458448762,0.3608,107330.0,107320.0,0.12973965]
[1734458448955,0.11016799,107370.0,107360.0,0.046565]
[1734458449155,0.04639121,107380.0,107360.0,0.407365]
[1734458449445,0.09294721,107380.0,107370.0,0.04656]
[1734458449950,0.00149121,107380.0,107370.0,0.40736]
[1734458452552,0.00149121,107380.0,107370.0,0.49051965]
[1734458452749,9.389e-05,107380.0,107370.0,0.49051965]
[1734458453851,9.389e-05,107380.0,107370.0,0.5736793]
[1734458454154,1.907345,107410.0,107370.0,1.1654793]
[1734458454355,1.907345,107410.0,107400.0,0.046547]
[1734458454842,0.3608,107410.0,107400.0,0.046547]
[1734458455151,0.3608,107410.0,107400.0,0.04664089]
[1734458455358,0.407343,107410.0,107400.0,0.04664089]
[1734458455667,0.046543,107410.0,107400.0,0.04664089]
[1734458457450,1.907343,107410.0,107400.0,0.04664089]
[1734458457644,1.99050265,107410.0,107400.0,0.04664089]
[1734458458559,2.29050265,107410.0,107390.0,0.02928747]
[1734458458759,0.49050965,107400.0,107390.0,0.046551]
[1734458458947,0.046552,107390.0,107380.0,0.338355]
[1734458459149,0.55181165,107390.0,107380.0,0.338355]
[1734458459458,0.469152,107390.0,107380.0,0.338355]
[1734458460370,0.107852,107390.0,107380.0,0.046555]
[1734458460561,0.468652,107390.0,107380.0,0.046555]
[1734458460766,0.407348,107400.0,107390.0,0.046552]
[1734458462061,0.49050765,107400.0,107390.0,0.046552]
[1734458464206,0.046555,107390.0,107380.0,0.046554]
[1734458464484,0.49051465,107390.0,107380.0,0.046554]
[1734458467171,0.407355,107390.0,107380.0,0.046554]
[1734458469469,0.046555,107390.0,107380.0,0.046554]
[1734458469863,0.40785,107400.0,107390.0,0.046552]
[1734458470068,0.3613,107400.0,107390.0,0.12971165]
[1734458470273,0.0005,107400.0,107390.0,0.49051165]
[1734458473996,0.0005,107400.0,107390.0,0.79051165]
[1734458474167,0.00150172,107420.0,107410.0,0.046543]
[1734458474373,0.046532,107440.0,107420.0,0.046538]
[1734458474608,0.046532,107440.0,107430.0,0.046534]
[1734458475575,0.42567667,107450.0,107430.0,0.12977932]
[1734458475776,0.47220467,107450.0,107440.0,0.04653]
[1734458476293,0.11140467,107450.0,107440.0,0.04653]
[1734458476600,0.47220467,107450.0,107440.0,0.04653]
[1734458476785,0.55536432,107450.0,107440.0,0.04653]
[1734458477789,0.47220467,107450.0,107440.0,0.04653]
[1734458479474,0.47270467,107450.0,107440.0,0.04653]
[1734458481373,0.42617667,107450.0,107440.0,0.04653]
[1734458481683,0.42617667,107450.0,107440.0,0.15950836]
[1734458481874,0.11190267,107450.0,107440.0,0.15950836]
[1734458482272,0.11190267,107450.0,107440.0,0.07634871]
[1734458483681,0.47270267,107450.0,107440.0,0.07634871]
[1734458487781,0.47270267,107450.0,107440.0,0.02981871]
[1734458487985,0.04653,107440.0,107430.0,0.04661867]
[1734458488181,0.40733,107440.0,107430.0,0.04661867]
[1734458488575,0.40733,107440.0,107430.0,8.567e-05]
[1734458488780,0.49048965,107440.0,107430.0,8.567e-05]
[1734458490788,0.046539,107420.0,107410.0,0.07865714]
[1734458490989,0.49049865,107420.0,107410.0,0.03211514]
[1734458491200,0.91329865,107420.0,107410.0,0.03211514]
[1734458491381,0.108539,107420.0,107410.0,0.03211514]
[1734458491988,0.469339,107420.0,107410.0,0.03211514]
[1734458493382,0.55249865,107420.0,107410.0,0.03071875]
[1734458493592,0.046543,107410.0,107400.0,0.0005]
[1734458493787,0.49050265,107410.0,107400.0,0.0005]
[1734458494393,0.407345,107410.0,107390.0,0.16007134]
[1734458494689,0.3608,107400.0,107390.0,0.093098]
[1734458495584,0.49050665,107400.0,107380.0,0.046554]
[1734458495896,0.046549,107400.0,107390.0,0.046552]
[1734458496575,0.407349,107400.0,107390.0,0.046552]
[1734458497185,0.407349,107400.0,107390.0,0.12971165]
[1734458497386,0.046549,107400.0,107390.0,0.12971165]
[1734458498599,0.046549,107400.0,107390.0,0.046552]
[1734458502500,0.407349,107400.0,107390.0,0.046552]
[1734458503578,0.046549,107400.0,107390.0,0.046552]
[1734458503780,0.407344,107410.0,107400.0,0.046547]
[1734458504002,0.3608,107410.0,107400.0,0.046547]
[1734458504193,0.407343,107410.0,107400.0,0.046547]
[1734458504398,0.407343,107410.0,107400.0,0.047047]
[1734458505292,0.46934,107420.0,107410.0,0.046543]
[1734458505988,0.55249965,107420.0,107410.0,0.046543]
[1734458508292,0.46934,107420.0,107410.0,0.046543]
[1734458508894,0.3916,107420.0,107410.0,0.046543]
[1734458509088,0.0308,107420.0,107410.0,0.52090265]
[1734458509418,0.4393288,107440.0,107430.0,0.046534]
[1734458510482,0.4388288,107440.0,107430.0,0.046534]
[1734458511489,0.4393288,107440.0,107430.0,0.046534]
[1734458511697,0.4092288,107440.0,107430.0,0.046534]
[1734458512489,0.4087288,107440.0,107420.0,0.38799834]
[1734458512688,0.4087288,107440.0,107430.0,0.046534]
[1734458513396,0.4092288,107440.0,107430.0,0.046534]
[1734458514391,0.0013968,107440.0,107430.0,0.49049365]
[1734458514600,0.07820726,107450.0,107430.0,0.49049365]
[1734458514894,0.03168026,107450.0,107440.0,0.12968965]
[1734458515099,8.026e-05,107450.0,107440.0,0.16288965]
[1734458516206,8.026e-05,107450.0,107440.0,0.52368965]
[1734458520311,8.026e-05,107450.0,107440.0,0.55602633]
[1734458521494,8.026e-05,107450.0,107440.0,0.47286668]
[1734458522097,8.026e-05,107450.0,107440.0,0.55602633]
[1734458524514,0.00058026,107450.0,107440.0,0.55602633]
[1734458524927,0.50405965,107470.0,107440.0,0.85611134]
[1734458524928,0.03,107470.0,107440.0,0.85611134]
[1734458525095,0.36219608,107490.0,107480.0,0.046513]
[1734458525096,0.47140708,107490.0,107480.0,0.046513]
[1734458526401,0.55456673,107490.0,107480.0,0.046513]
[1734458527420,0.046514,107480.0,107470.0,0.046515]
[1734458527597,0.49047365,107480.0,107470.0,0.046515]
[1734458528204,0.52127365,107480.0,107470.0,0.046515]
[1734458528699,0.438114,107480.0,107470.0,0.046515]
[1734458530401,0.0308,107480.0,107470.0,0.046515]
[1734458530804,0.0308,107480.0,107470.0,0.07861221]
[1734458532412,0.47140708,107490.0,107470.0,0.16177186]
[1734458532599,0.42489608,107490.0,107480.0,0.046513]
[1734458533507,0.49257255,107500.0,107480.0,0.12967265]
[1734458533705,0.53907655,107500.0,107490.0,0.046508]
[1734458534011,0.6222362,107500.0,107490.0,0.046508]
[1734458538114,0.6222362,107500.0,107490.0,0.07884978]
[1734458538511,0.53907655,107500.0,107490.0,0.07884978]
[1734458539530,0.53957655,107500.0,107490.0,0.07884978]
[1734458549535,0.53907655,107500.0,107490.0,0.07884978]
[1734458552018,0.53907655,107500.0,107480.0,0.09618627]
[1734458552221,0.53907655,107500.0,107490.0,0.046508]
[1734458554127,0.53907655,107500.0,107470.0,0.56831172]
[1734458554425,0.53907655,107500.0,107480.0,0.046513]
[1734458554925,0.53907655,107500.0,107490.0,0.046508]
[1734458560856,0.53907655,107500.0,107490.0,0.07430707]
[1734458561296,0.046513,107480.0,107470.0,0.0005]
[1734458561542,0.046521,107460.0,107450.0,0.04791976]
[1734458561855,0.85089476,107460.0,107450.0,0.02835285]
[1734458562056,0.76773511,107460.0,107450.0,0.02835285]
[1734458562261,0.76773511,107460.0,107450.0,0.07487885]
[1734458565256,0.85089476,107460.0,107450.0,0.07487885]
[1734458566760,0.046526,107450.0,107440.0,8.501e-05]
[1734458566973,0.046534,107440.0,107430.0,0.046534]
[1734458567140,0.55549365,107440.0,107430.0,0.046534]
[1734458567410,0.58809365,107440.0,107430.0,0.046534]
[1734458567578,0.046538,107430.0,107420.0,0.046538]
[1734458567956,0.046539,107420.0,107410.0,0.04793708]
[1734458568163,0.49049865,107420.0,107410.0,0.04793708]
[1734458568345,0.49049865,107420.0,107410.0,0.07588759]
[1734458568722,0.49061363,107420.0,107410.0,0.02934659]
[1734458569225,0.49061363,107420.0,107400.0,0.046544]
[1734458569226,0.046543,107410.0,107400.0,0.046544]
[1734458569483,0.00011498,107420.0,107410.0,0.046543]
[1734458569704,0.00011498,107420.0,107410.0,0.49100265]
[1734458570070,0.00011498,107420.0,107410.0,0.52360265]
[1734458574435,0.44407463,107420.0,107410.0,0.047043]
[1734458574633,0.08327463,107420.0,107410.0,0.047043]
[1734458575735,0.12981363,107420.0,107410.0,0.047043]
[1734458575939,0.49061363,107420.0,107410.0,0.047043]
[1734458577739,0.49061363,107420.0,107410.0,0.0005]
[1734458579746,0.046543,107410.0,107400.0,0.02736793]
[1734458579948,0.046547,107400.0,107390.0,0.04655]
[1734458580312,0.49050665,107400.0,107390.0,0.04655]
[1734458580454,0.046547,107400.0,107390.0,0.04655]
[1734458580652,0.470744,107410.0,107400.0,0.046547]
[1734458581954,0.4242,107410.0,107400.0,0.046547]
[1734458582445,0.55390265,107410.0,107400.0,0.046547]
[1734458582637,0.36091498,107420.0,107400.0,0.12970665]
[1734458582898,0.36091498,107420.0,107410.0,0.12970265]
[1734458583105,0.36091498,107420.0,107410.0,0.046543]
[1734458583407,0.046543,107410.0,107400.0,0.046545]
[1734458583629,0.52270265,107410.0,107400.0,0.046545]
[1734458583946,0.439543,107410.0,107400.0,0.046545]
[1734458584662,0.40745498,107420.0,107410.0,0.047043]
[1734458585249,0.36091498,107420.0,107410.0,0.047043]
[1734458586056,0.00011498,107420.0,107410.0,0.047043]
[1734458587860,0.00011498,107420.0,107410.0,0.079443]
[1734458588252,0.12981363,107420.0,107410.0,0.047043]
[1734458588568,0.40745398,107420.0,107410.0,0.046543]
[1734458588773,0.49061363,107420.0,107410.0,0.046543]
[1734458588955,0.40745398,107420.0,107410.0,0.046543]
[1734458590346,0.36091498,107420.0,107410.0,0.07988496]
[1734458590851,0.00011498,107420.0,107410.0,0.44068496]
[1734458591172,0.06492482,107460.0,107440.0,0.04653]
[1734458591476,0.55357965,107470.0,107460.0,0.046521]
[1734458591757,0.58647965,107470.0,107460.0,0.046521]
[1734458592256,0.58655519,107470.0,107460.0,0.04659393]
[1734458592573,0.58655519,107470.0,107460.0,7.293e-05]
[1734458592761,0.58655519,107470.0,107460.0,0.04659393]
[1734458592952,0.60530827,107470.0,107460.0,0.04659393]
[1734458599771,0.60708509,107470.0,107460.0,0.04659393]
[1734458607163,0.50517236,107470.0,107460.0,0.04659393]
[1734458609466,0.58833201,107470.0,107460.0,0.04659393]
[1734458613170,0.36265236,107470.0,107460.0,0.04659393]
[1734458613378,0.00185236,107470.0,107460.0,0.04659393]
[1734458613559,0.00135236,107470.0,107460.0,0.04659393]
[1734458614183,0.04786936,107470.0,107460.0,0.04659393]
[1734458614390,0.49182901,107470.0,107460.0,0.04659393]
[1734458615084,0.57498866,107470.0,107430.0,0.407332]
[1734458615264,0.49048965,107440.0,107430.0,0.046532]
[1734458615581,0.046534,107430.0,107420.0,0.04793316]
[1734458615803,0.50693998,107430.0,107420.0,0.00139616]
[1734458615978,0.66983363,107430.0,107420.0,0.03574208]
[1734458616181,0.046546,107410.0,107400.0,0.046547]
[1734458616473,0.046546,107410.0,107400.0,0.08141409]
[1734458616474,0.407346,107410.0,107400.0,0.08141409]
[1734458616783,0.046539,107420.0,107410.0,0.04526618]
[1734458616967,0.12969865,107420.0,107410.0,0.04526618]
[1734458617167,0.10951733,107430.0,107420.0,0.046539]
[1734458617678,0.55347698,107430.0,107420.0,0.046539]
[1734458623100,0.55347698,107430.0,107420.0,0.07635231]
[1734458625102,0.046541,107420.0,107410.0,0.046541]
[1734458625305,0.046543,107410.0,107400.0,0.33840234]
[1734458625526,0.49050265,107410.0,107400.0,0.33840234]
[1734458625711,0.49050265,107410.0,107400.0,0.04660234]
[1734458626625,0.49050265,107410.0,107400.0,5.634e-05]
[1734458626809,0.49050265,107410.0,107400.0,0.04660334]
[1734458627024,0.52059965,107420.0,107410.0,0.046543]
[1734458628227,0.88139965,107420.0,107410.0,0.046543]
[1734458629703,0.88139965,107420.0,107410.0,0.047043]
[1734458633388,0.88139965,107420.0,107410.0,0.07617705]
[1734458633993,0.47031733,107430.0,107410.0,0.5201367]
[1734458634184,0.47031433,107430.0,107420.0,0.046539]
[1734458634403,0.55347398,107430.0,107420.0,0.046539]
[1734458635399,0.55347398,107430.0,107410.0,0.031]
[1734458635694,0.55347398,107430.0,107420.0,0.046539]
[1734458636998,0.046539,107420.0,107410.0,0.047039]
[1734458637296,0.046539,107420.0,107410.0,0.07645046]
[1734458637297,0.49049865,107420.0,107410.0,0.07645046]
[1734458637898,0.407339,107420.0,107410.0,0.07645046]
[1734458638090,0.3608,107420.0,107410.0,0.07645046]
[1734458638621,0.55347698,107430.0,107420.0,0.046539]
[1734458640387,0.50693998,107430.0,107420.0,0.046539]
[1734458640587,0.42378033,107430.0,107420.0,0.046539]
[1734458641702,2.04229476,107440.0,107420.0,0.8046583]
[1734458641703,1.48925497,107440.0,107420.0,0.8046583]
[1734458641991,7.554e-05,107470.0,107460.0,0.046521]
[1734458642198,7.554e-05,107470.0,107460.0,0.60569664]
[1734458642501,0.407309,107490.0,107460.0,0.60569664]
[1734458642502,0.3608,107490.0,107480.0,0.12967265]
[1734458642698,0.15233386,107500.0,107490.0,0.046508]
[1734458642898,0.1333,107500.0,107490.0,0.49046765]
[1734458643091,0.1,107500.0,107490.0,0.49046765]
[1734458644695,0.1005,107500.0,107490.0,0.49046765]
[1734458646187,0.1005,107500.0,107490.0,0.51615587]
[1734458647697,0.59096365,107500.0,107490.0,0.046508]
[1734458650003,0.4613,107500.0,107490.0,0.046508]
[1734458650293,0.1005,107500.0,107490.0,0.12966765]
[1734458650504,0.1005,107500.0,107490.0,0.407308]
[1734458650687,0.1005,107500.0,107490.0,0.046508]
[1734458653396,0.1005,107500.0,107490.0,0.407308]
[1734458653710,0.1005,107500.0,107490.0,0.046508]
[1734458657203,0.4613,107500.0,107490.0,0.046508]
[1734458657847,0.1005,107500.0,107490.0,0.407308]
[1734458658301,0.1005,107500.0,107490.0,0.046508]
[1734458661229,0.23016365,107500.0,107490.0,0.046508]
[1734458661420,0.59096365,107500.0,107490.0,0.046508]
[1734458664671,0.59096365,107500.0,107480.0,0.02476819]
[1734458664841,0.58836765,107490.0,107480.0,0.046512]
[1734458665304,0.046513,107480.0,107470.0,0.046513]
[1734458665620,0.407313,107480.0,107470.0,0.046513]
[1734458668303,0.046513,107480.0,107470.0,0.046513]
[1734458668503,0.0979,107490.0,107470.0,0.51548459]
[1734458668711,0.144411,107490.0,107480.0,0.046513]
[1734458669103,0.22757065,107490.0,107480.0,0.046513]
[1734458669610,0.58837065,107490.0,107480.0,0.046513]
[1734458671417,0.505211,107490.0,107480.0,0.046513]
[1734458674009,0.58837065,107490.0,107480.0,0.046513]
[1734458675025,0.6715303,107490.0,107480.0,0.046513]
[1734458675525,0.046513,107480.0,107470.0,0.02501194]
[1734458675705,0.046517,107470.0,107460.0,0.04657534]
[1734458675914,0.49047665,107470.0,107460.0,0.04657534]
[1734458676205,0.12967665,107470.0,107460.0,0.04657534]
[1734458676432,0.49047665,107470.0,107460.0,0.04657534]
[1734458676983,0.49047665,107470.0,107460.0,0.07149237]
[1734458677806,0.49047665,107470.0,107460.0,0.07199237]
[1734458678705,0.49047665,107470.0,107460.0,0.07149237]
[1734458679814,0.49047665,107470.0,107460.0,0.07199237]
[1734458680833,0.49047665,107470.0,107460.0,0.07149237]
[1734458681243,0.407317,107470.0,107460.0,0.07149237]
[1734458681812,0.407317,107470.0,107460.0,0.07199237]
[1734458682011,0.046517,107470.0,107460.0,0.07199237]
[1734458682312,0.046515,107480.0,107470.0,0.046517]
[1734458682613,0.49047465,107480.0,107470.0,0.046517]
[1734458683927,0.407315,107480.0,107470.0,0.046517]
[1734458684422,0.49047465,107480.0,107470.0,0.046517]
[1734458685160,0.407315,107480.0,107470.0,0.046517]
[1734458686213,0.046515,107480.0,107470.0,0.046517]
[1734458686428,0.407315,107480.0,107470.0,0.046517]
[1734458686617,0.49047465,107480.0,107470.0,0.046517]
[1734458692966,0.3608,107480.0,107470.0,0.046517]
[1734458693131,0.60703996,107490.0,107470.0,0.077717]
[1734458693324,0.60703996,107490.0,107470.0,0.124234]
[1734458693534,0.60703996,107490.0,107480.0,0.046513]
[1734458694329,0.60703996,107490.0,107470.0,0.046517]
[1734458694529,0.49047265,107480.0,107470.0,0.046517]
[1734458700345,0.046517,107470.0,107460.0,0.07149237]
[1734458700566,0.49047665,107470.0,107460.0,0.02497337]
[1734458701038,0.49047665,107470.0,107460.0,5.634e-05]
[1734458701941,0.046517,107470.0,107460.0,5.634e-05]
[1734458702139,0.046517,107470.0,107460.0,0.04657734]
[1734458702426,0.12967665,107470.0,107460.0,0.04657734]
[1734458702659,0.49047665,107470.0,107460.0,0.04657734]
[1734458703429,0.49047665,107470.0,107460.0,5.634e-05]
[1734458704831,0.49047665,107470.0,107460.0,0.04657734]
[1734458705043,0.407317,107470.0,107460.0,0.04657734]
[1734458705428,0.49047665,107470.0,107460.0,0.04657734]
[1734458705627,0.407317,107470.0,107460.0,0.04657734]
[1734458705845,0.49047665,107470.0,107460.0,0.04657734]
[1734458709237,0.49047665,107470.0,107460.0,5.634e-05]
[1734458709631,0.046521,107460.0,107450.0,0.0005]
[1734458709845,0.04653,107440.0,107430.0,0.07452401]
[1734458710148,0.40733,107440.0,107430.0,0.07452401]
[1734458710638,0.40733,107440.0,107430.0,0.07459436]
[1734458710839,0.3608,107440.0,107430.0,0.07459436]
[1734458711231,0.49048965,107440.0,107430.0,0.07459436]
[1734458712748,0.12968965,107440.0,107430.0,0.07459436]
[1734458713150,0.49048665,107450.0,107430.0,0.12112636]
[1734458713364,0.49048665,107450.0,107440.0,0.046526]
[1734458713737,0.49048665,107450.0,107440.0,0.0005]
[1734458714135,0.49048665,107450.0,107440.0,0.04703]
[1734458714844,0.49048665,107450.0,107440.0,0.04653]
[1734458715740,0.49048665,107450.0,107440.0,0.04703]
[1734458716839,0.49048665,107450.0,107440.0,0.04653]
[1734458717752,0.49048665,107450.0,107440.0,0.04703]
[1734458717941,0.49048665,107450.0,107430.0,0.06670831]
[1734458718242,0.407327,107450.0,107440.0,0.04653]
[1734458718946,0.407327,107450.0,107440.0,0.04703]
[1734458719264,0.49048665,107450.0,107440.0,0.04703]
[1734458720542,0.49048665,107450.0,107440.0,0.0005]
[1734458721857,0.04653,107440.0,107430.0,0.06670831]
[1734458722145,0.49048965,107440.0,107430.0,0.06670831]
[1734458722734,0.49048965,107440.0,107430.0,0.06720831]
[1734458723541,0.49048965,107440.0,107430.0,0.00057035]
[1734458723743,0.49048965,107440.0,107430.0,7.035e-05]
[1734458724955,0.49048965,107440.0,107430.0,0.00057035]
[1734458725848,0.49048965,107440.0,107430.0,7.035e-05]
[1734458726943,0.49048965,107440.0,107430.0,0.00057035]
[1734458727963,0.49048965,107440.0,107430.0,7.035e-05]
[1734458728849,0.49048965,107440.0,107430.0,0.00057035]
[1734458729945,0.49048965,107440.0,107430.0,7.035e-05]
[1734458730642,0.5736493,107440.0,107430.0,7.035e-05]
[1734458730847,0.60139101,107440.0,107430.0,7.035e-05]
[1734458731068,0.60147778,107440.0,107430.0,7.035e-05]
[1734458734144,0.51831813,107440.0,107430.0,7.035e-05]
[1734458734548,0.60147778,107440.0,107430.0,7.035e-05]
[1734458736252,2.01831813,107440.0,107430.0,7.035e-05]
[1734458741551,2.10147778,107440.0,107430.0,7.035e-05]
[1734458741955,2.09886266,107440.0,107430.0,7.035e-05]
[1734458743445,2.06264993,107440.0,107430.0,7.035e-05]
[1734458744269,1.95351381,107440.0,107430.0,7.035e-05]
[1734458744470,8.677e-05,107440.0,107430.0,0.04660435]
[1734458744765,0.15575289,107440.0,107430.0,0.04660435]
[1734458744961,0.51655289,107440.0,107430.0,7.035e-05]
[1734458745166,0.57112095,107440.0,107430.0,7.035e-05]
[1734458745572,0.51655289,107440.0,107430.0,7.035e-05]
[1734458746072,0.49056193,107440.0,107430.0,7.035e-05]
[1734458748364,1.99056193,107440.0,107430.0,7.035e-05]
[1734458749666,1.99056193,107440.0,107430.0,0.04660435]
[1734458750241,0.49056193,107440.0,107430.0,7.035e-05]
[1734458750666,1.99056193,107440.0,107430.0,7.035e-05]
[1734458751070,1.99056193,107440.0,107430.0,0.04660435]
[1734458751263,0.49056193,107440.0,107430.0,0.04660435]
[1734458753161,0.40741677,107440.0,107430.0,0.04660435]
[1734458753391,0.40741677,107440.0,107430.0,0.07700435]
[1734458753670,0.40741677,107440.0,107430.0,0.10720435]
[1734458754965,0.49056193,107440.0,107430.0,0.10720435]
[1734458757361,0.57370709,107440.0,107430.0,7.035e-05]
[1734458757757,0.49056193,107440.0,107430.0,7.035e-05]
[1734458758171,0.57370709,107440.0,107430.0,7.035e-05]
[1734458758364,0.49056193,107440.0,107430.0,7.035e-05]
[1734458758567,1.99056193,107440.0,107430.0,7.035e-05]
[1734458761264,1.99056193,107440.0,107430.0,0.55507563]
[1734458761675,2.02438622,107440.0,107430.0,0.55507563]
[1734458762278,0.52438622,107440.0,107430.0,0.60160963]
[1734458762590,0.52438622,107440.0,107430.0,1.2079789]
[1734458763268,0.52438622,107440.0,107430.0,0.04660435]
[1734458763921,0.52438622,107440.0,107430.0,7.035e-05]
[1734458764077,0.52438622,107440.0,107430.0,0.60643962]
[1734458764293,0.60753138,107440.0,107430.0,7.035e-05]
[1734458764479,0.60753138,107440.0,107430.0,0.5556593]
[1734458764668,2.02438622,107440.0,107430.0,7.035e-05]
[1734458764886,0.52438622,107440.0,107430.0,7.035e-05]
[1734458765269,2.02438622,107440.0,107430.0,7.035e-05]
[1734458766071,0.52438622,107440.0,107430.0,7.035e-05]
[1734458766975,0.52438622,107440.0,107430.0,0.04660435]
[1734458768067,0.52438622,107440.0,107430.0,0.6021933]
[1734458768672,0.52438622,107440.0,107430.0,0.68357362]
[1734458768879,0.52438622,107440.0,107430.0,1.23912703]
[1734458769490,0.52438622,107440.0,107430.0,0.07720435]
[1734458769871,0.39471106,107440.0,107430.0,0.63275776]
[1734458770079,0.03382429,107440.0,107430.0,0.10740435]
[1734458770273,0.453857,107450.0,107440.0,0.04653]
[1734458770574,0.49047316,107450.0,107440.0,0.04653]
[1734458770966,0.49047316,107450.0,107430.0,1.2226665]
[1734458771171,0.49047516,107440.0,107430.0,1.2691975]
[1734458771384,0.49047516,107440.0,107430.0,0.71377062]
[1734458771974,0.49047516,107440.0,107430.0,1.26911912]
[1734458771975,0.12967516,107440.0,107430.0,1.26911912]
[1734458772472,0.12967516,107440.0,107430.0,1.26903964]
[1734458772785,0.12967516,107440.0,107430.0,0.71377062]
[1734458773002,0.04653,107440.0,107430.0,0.71377062]
[1734458773679,0.12967516,107440.0,107430.0,0.71377062]
[1734458773975,0.12967516,107440.0,107430.0,0.75660361]
[1734458774486,0.12967516,107440.0,107430.0,1.31193245]
[1734458774991,0.12967516,107440.0,107430.0,0.70556318]
[1734458775294,0.12967516,107440.0,107430.0,0.67536318]
[1734458775484,0.49047516,107440.0,107430.0,0.67536318]
[1734458775680,0.49047516,107440.0,107430.0,0.12003434]
[1734458775877,0.12967516,107440.0,107430.0,0.12003434]
[1734458776075,0.49047516,107440.0,107430.0,0.12003434]
[1734458776381,0.40733,107440.0,107430.0,0.12003434]
[1734458779291,0.40733,107440.0,107430.0,0.67536318]
[1734458780573,0.40733,107440.0,107430.0,0.12003434]